bitfinex-derivatives/quotes_ETHF0:USTF0_20230401
["timestamp","ask_amount","ask_price","bid_price","bid_amount"]
[1680361419897,0.85795223,1817.1,1817.0,6.58563306]
[1680361420396,1.14393631,1817.3,1817.0,11.99143306]
[1680361420591,0.85815067,1817.3,1817.2,2.187]
[1680361420992,0.85815067,1817.3,1817.2,8.40119972]
[1680361423398,0.85815067,1817.4,1817.2,11.60899972]
[1680361423595,0.85815067,1817.4,1817.3,1.0]
[1680361423996,0.85815067,1817.4,1817.3,6.2888758]
[1680361425397,4.33493631,1817.4,1817.3,6.13723709]
[1680361426099,3.33493631,1817.4,1817.3,6.13723709]
[1680361426895,1.14393631,1817.4,1817.3,6.13723709]
[1680361427095,3.34493631,1817.4,1817.3,6.13723709]
[1680361427496,4.34493631,1817.4,1817.3,6.13723709]
[1680361427691,3.34493631,1817.4,1817.3,6.13723709]
[1680361428395,4.313061,1817.4,1816.9,40.8]
[1680361428592,3.05078758,1817.2,1816.9,40.8]
[1680361429196,3.05078758,1817.2,1817.0,7.13775485]
[1680361429396,3.05078758,1817.2,1817.1,1.0]
[1680361429599,0.85778758,1817.2,1817.1,1.0]
[1680361429901,0.85778758,1817.2,1817.1,6.65597921]
[1680361430893,0.85875351,1817.2,1817.1,6.65597921]
[1680361431299,0.85875351,1817.3,1817.1,8.85397921]
[1680361431500,0.85875351,1817.3,1817.2,4.2078]
[1680361431907,0.85875351,1817.3,1817.2,9.96527604]
[1680361432106,0.85875351,1817.4,1817.2,9.96527604]
[1680361432308,0.85875351,1817.4,1817.3,1.0]
[1680361432607,0.85875351,1817.4,1817.3,6.73736496]
[1680361432909,0.85875351,1817.4,1817.3,8.92436496]
[1680361434699,0.85875351,1817.5,1817.3,8.92436496]
[1680361435009,0.85875351,1817.5,1817.4,4.2078]
[1680361435408,0.85875351,1817.5,1817.4,10.1527019]
[1680361436606,0.85875351,1817.6,1817.4,17.8467019]
[1680361436913,0.85875351,1817.7,1817.5,3.195]
[1680361437111,0.85875351,1817.7,1817.6,4.2078]
[1680361437415,0.85875351,1817.7,1817.6,12.68497803]
[1680361438013,0.85875351,1817.7,1817.6,53.48497803]
[1680361438709,0.85875351,1817.8,1817.6,53.48497803]
[1680361439006,0.85787739,1817.8,1817.7,1.0]
[1680361439213,1.14371678,1817.9,1817.7,1.0]
[1680361439414,0.85788094,1817.8,1817.7,6.90232963]
[1680361439705,1.14371678,1817.8,1817.7,5.90232963]
[1680361439911,2.14371678,1817.8,1817.7,5.90232963]
[1680361440105,2.14371678,1817.8,1817.7,46.70232963]
[1680361440106,1.14371678,1817.8,1817.7,46.70232963]
[1680361440302,4.35151678,1817.9,1817.7,46.70232963]
[1680361440702,0.85789786,1817.8,1817.7,46.70232963]
[1680361441302,0.85789786,1817.9,1817.7,46.70232963]
[1680361441507,0.85789786,1817.9,1817.7,52.11112963]
[1680361441706,0.85789786,1817.9,1817.8,1.0]
[1680361442112,0.85789786,1817.9,1817.8,7.36614408]
[1680361445611,0.85789786,1817.9,1817.8,6.36614408]
[1680361445806,0.85789786,1817.9,1817.8,7.36614408]
[1680361446909,0.85789786,1817.9,1817.8,6.36614408]
[1680361447111,0.85789786,1817.9,1817.8,7.36614408]
[1680361450818,3.04889786,1817.9,1817.8,6.36614408]
[1680361451018,6.25669786,1817.9,1817.8,6.36614408]
[1680361451218,5.3988,1817.9,1817.8,6.36614408]
[1680361451614,6.3988,1817.9,1817.8,6.36614408]
[1680361451819,7.25591418,1817.9,1817.8,6.36614408]
[1680361452015,6.25591418,1817.9,1817.8,6.36614408]
[1680361452423,5.16491418,1817.9,1817.8,6.36614408]
[1680361453621,0.85711418,1817.9,1817.8,6.36614408]
[1680361453916,0.85711418,1817.9,1817.8,8.46614408]
[1680361454317,0.85711418,1817.9,1817.8,7.46614408]
[1680361454715,0.85711418,1817.9,1817.8,8.46614408]
[1680361455115,0.85711418,1817.9,1817.8,8.45814408]
[1680361455518,0.85711418,1818.0,1817.8,13.95114408]
[1680361455718,0.85711418,1818.0,1817.9,1.1]
[1680361455918,0.85711418,1818.0,1817.9,5.1562125]
[1680361456123,0.85711418,1818.1,1817.9,11.49454662]
[1680361456317,0.85507328,1818.1,1818.0,1.13415736]
[1680361456514,0.85507328,1818.1,1818.0,2.13415736]
[1680361456722,1.14371678,1818.3,1818.0,8.04233241]
[1680361456921,1.14371678,1818.3,1818.2,1.1]
[1680361457319,1.14371678,1818.3,1818.2,7.02321701]
[1680361460428,2.14371678,1818.3,1818.2,7.02321701]
[1680361460724,2.42963015,1818.3,1818.2,7.02321701]
[1680361461727,1.42963015,1818.3,1818.2,7.02321701]
[1680361462826,2.11172365,1818.3,1818.2,7.02321701]
[1680361464526,1.14516757,1818.3,1818.2,8.02221701]
[1680361464827,1.14516757,1818.3,1818.2,7.02221701]
[1680361465226,1.14516757,1818.4,1818.2,7.02221701]
[1680361465432,1.42963015,1818.5,1818.3,1.1]
[1680361465626,1.1454136,1818.4,1818.3,1.1]
[1680361465826,3.36641821,1818.6,1818.4,6.07582272]
[1680361466026,3.88986281,1818.5,1818.3,6.10227842]
[1680361466328,3.11387302,1818.4,1818.2,0.04317322]
[1680361466524,1.14540349,1818.3,1818.2,0.04317322]
[1680361466726,2.14540349,1818.3,1818.2,0.04317322]
[1680361467422,1.0,1818.2,1817.8,9.70758502]
[1680361467627,1.0,1818.2,1817.8,9.1518]
[1680361467628,2.14527735,1818.2,1817.8,9.1518]
[1680361468228,2.14527735,1818.2,1817.9,6.14755991]
[1680361468430,1.14527735,1818.2,1817.9,7.14755991]
[1680361469233,1.14527735,1818.2,1817.9,6.14755991]
[1680361470826,1.14527735,1818.2,1818.0,1.092]
[1680361471330,1.14527735,1818.3,1818.1,6.97200063]
[1680361472126,1.14527735,1818.3,1818.1,5.97200063]
[1680361472423,1.14527735,1818.2,1818.1,5.97200063]
[1680361472623,2.095,1818.2,1818.1,5.97200063]
[1680361472920,4.20893213,1818.2,1817.8,5.944]
[1680361473127,1.14558183,1818.1,1817.9,6.18586066]
[1680361473429,1.14558183,1818.1,1818.0,1.1]
[1680361473733,1.14558183,1818.1,1818.0,8.18313151]
[1680361474828,1.14558183,1818.2,1818.0,8.18313151]
[1680361475029,1.14558183,1818.2,1818.1,1.0]
[1680361475335,1.43181587,1818.3,1818.1,6.77744611]
[1680361475629,0.68207095,1818.4,1818.1,9.98524611]
[1680361475630,1.14634805,1818.2,1818.1,9.98524611]
[1680361475836,1.14634805,1818.2,1818.1,11.07724611]
[1680361476039,1.14634805,1818.3,1818.1,11.07724611]
[1680361476226,1.14634805,1818.3,1818.2,1.1]
[1680361476729,1.14705225,1818.3,1818.2,6.89731103]
[1680361477033,1.14705225,1818.3,1818.2,7.89731103]
[1680361477829,1.14705225,1818.3,1818.2,13.39031103]
[1680361478823,1.14705225,1818.3,1818.2,6.89731103]
[1680361479735,1.14705225,1818.3,1818.2,47.69731103]
[1680361480930,1.14705225,1818.3,1818.2,46.59731103]
[1680361482638,1.43181587,1818.4,1818.2,46.59731103]
[1680361482840,2.11383231,1818.4,1818.2,46.59731103]
[1680361483032,1.43181587,1818.3,1818.2,46.59731103]
[1680361483233,2.53181587,1818.3,1818.2,46.59731103]
[1680361483531,2.53181587,1818.3,1817.9,3.2078]
[1680361483532,1.7820656,1818.3,1817.9,3.2078]
[1680361483839,1.0,1818.0,1817.9,3.2078]
[1680361484038,1.14766423,1818.1,1817.9,3.2078]
[1680361484238,1.14766423,1818.1,1818.0,5.89614119]
[1680361484441,1.14766423,1818.1,1817.9,49.94184228]
[1680361484735,1.14766423,1818.0,1817.9,44.0078]
[1680361485237,1.14766423,1818.0,1817.9,46.68507008]
[1680361486443,1.14766423,1818.1,1817.9,56.47787008]
[1680361486744,1.14766423,1818.1,1818.0,2.1]
[1680361487238,1.14766423,1818.1,1818.0,8.27857254]
[1680361489939,1.14766423,1818.1,1818.0,13.77157254]
[1680361491039,1.14766423,1818.2,1818.0,13.77157254]
[1680361491239,1.14766423,1818.2,1818.1,9.7008]
[1680361491636,1.14766423,1818.2,1818.1,15.33326292]
[1680361492041,1.14766423,1818.3,1818.2,2.194]
[1680361492233,1.14766423,1818.3,1818.2,3.194]
[1680361492433,1.14766423,1818.3,1818.2,3.54696585]
[1680361497748,1.14766423,1818.3,1818.2,2.54696585]
[1680361497949,1.14766423,1818.3,1818.2,3.54696585]
[1680361498548,1.43458028,1818.4,1818.2,3.54696585]
[1680361498748,1.43458028,1818.4,1818.3,1.1]
[1680361499150,1.43458028,1818.4,1818.3,6.96021327]
[1680361500445,0.68198485,1818.5,1818.3,6.96021327]
[1680361500649,0.68198485,1818.4,1818.3,5.86021327]
[1680361500851,0.68198485,1818.4,1818.3,6.95221327]
[1680361502648,3.88978485,1818.5,1818.3,5.86021327]
[1680361502853,0.68198485,1818.4,1818.3,5.86021327]
[1680361503049,1.68198485,1818.4,1818.3,5.86021327]
[1680361503354,1.68198485,1818.4,1818.2,1.094]
[1680361503548,2.11894685,1818.3,1818.2,1.094]
[1680361506557,2.11894685,1818.3,1818.2,7.07502131]
[1680361506759,1.436962,1818.3,1818.2,7.07502131]
[1680361506960,1.436962,1818.3,1818.2,7.08102131]
[1680361507160,1.436962,1818.4,1818.2,8.08102131]
[1680361507656,1.14992639,1818.3,1818.2,8.08102131]
[1680361507960,1.14992639,1818.4,1818.2,12.38882131]
[1680361508153,1.14992639,1818.4,1818.3,2.092]
[1680361508554,1.436962,1818.5,1818.3,8.05963735]
[1680361508749,1.436962,1818.5,1818.4,5.3078]
[1680361509057,1.436962,1818.5,1818.4,10.55664453]
[1680361509261,0.68191775,1818.5,1818.4,10.55664453]
[1680361509460,1.43739374,1818.5,1818.4,10.55664453]
[1680361510357,0.68191775,1818.5,1818.4,10.55664453]
[1680361510553,3.39170198,1818.7,1818.4,10.55664453]
[1680361510758,13.8772193,1818.6,1818.4,10.55664453]
[1680361510962,2.11921099,1818.5,1818.4,10.55664453]
[1680361511154,1.43729324,1818.5,1818.4,10.55664453]
[1680361513161,1.14987612,1818.5,1818.4,16.04964453]
[1680361513562,1.14987612,1818.6,1818.5,6.593]
[1680361513859,1.14987612,1818.6,1818.5,8.687]
[1680361514059,1.14987612,1818.6,1818.5,8.70762262]
[1680361514862,1.14987612,1818.6,1818.5,49.50762262]
[1680361515669,1.14987612,1818.7,1818.6,1.0]
[1680361515871,1.14987612,1818.7,1818.6,5.3078]
[1680361516062,1.14987612,1818.7,1818.6,11.13931449]
[1680361516778,1.14987612,1818.7,1818.6,51.93931449]
[1680361519163,1.14987612,1818.7,1818.6,57.43231449]
[1680361522271,1.14987612,1818.7,1818.6,50.93931449]
[1680361524872,1.0,1818.9,1818.6,50.93931449]
[1680361525073,0.68186605,1818.8,1818.7,1.099]
[1680361525274,0.68186605,1818.8,1818.7,0.94787565]
[1680361525477,0.68186605,1818.8,1818.7,42.25447258]
[1680361525870,2.39165028,1819.0,1818.7,42.25447258]
[1680361526071,13.87592504,1818.9,1818.7,42.25447258]
[1680361526370,0.68186605,1818.8,1818.7,42.25447258]
[1680361526776,2.39165028,1819.0,1818.7,42.25447258]
[1680361527077,2.39165028,1819.0,1818.9,1.1]
[1680361527270,15.58534052,1819.0,1818.9,1.1]
[1680361527467,15.58534052,1819.0,1818.9,7.34479799]
[1680361529674,15.58534052,1819.0,1818.9,6.24479799]
[1680361530076,15.58534052,1819.0,1818.8,5.82211002]
[1680361530277,0.68186605,1818.9,1818.8,5.82211002]
[1680361530676,13.87591922,1818.9,1818.8,5.82211002]
[1680361531978,18.79350345,1818.9,1818.8,5.82211002]
[1680361534883,17.08371922,1818.9,1818.8,5.82211002]
[1680361535080,18.80897957,1818.9,1818.8,5.82211002]
[1680361536587,17.08371922,1818.9,1818.8,5.82211002]
[1680361537582,19.07846749,1818.9,1818.8,5.82211002]
[1680361540590,1.0,1818.8,1818.4,3.2078]
[1680361540892,1.43817813,1818.6,1818.4,3.2078]
[1680361541091,1.0,1818.7,1818.5,40.8]
[1680361541389,0.68191682,1818.6,1818.5,46.88546393]
[1680361541590,0.68191682,1818.7,1818.5,46.88546393]
[1680361542289,1.43824634,1818.6,1818.5,46.88546393]
[1680361542588,0.68191682,1818.6,1818.5,46.88546393]
[1680361542793,0.68191682,1818.7,1818.5,46.88546393]
[1680361543093,0.68191682,1818.6,1818.5,46.88546393]
[1680361543689,0.68191682,1818.7,1818.5,46.88546393]
[1680361543882,0.68191682,1818.6,1818.5,46.88546393]
[1680361544089,0.68191682,1818.7,1818.5,46.88546393]
[1680361544391,0.68191682,1818.6,1818.5,46.88546393]
[1680361544586,0.68191682,1818.7,1818.5,47.98446393]
[1680361544793,2.1204884,1818.6,1818.5,47.97946393]
[1680361544990,1.43857158,1818.6,1818.5,49.07746393]
[1680361545790,2.1204884,1818.6,1818.5,49.07746393]
[1680361546287,1.43857158,1818.6,1818.5,49.07746393]
[1680361550592,1.43857158,1818.6,1818.5,47.98346393]
[1680361552100,1.43857158,1818.6,1818.5,54.57446393]
[1680361552297,1.72581376,1818.9,1818.6,6.493]
[1680361552607,13.19351803,1818.8,1818.7,4.2078]
[1680361552899,13.87535499,1818.8,1818.7,11.28939365]
[1680361554095,13.87535499,1818.8,1818.7,10.28939365]
[1680361554310,13.87535499,1818.8,1818.7,7.08159365]
[1680361554494,15.60116875,1818.8,1818.7,7.08159365]
[1680361555294,15.60116875,1818.8,1818.7,6.93006854]
[1680361555897,15.60116875,1818.8,1818.7,5.83006854]
[1680361556092,15.87010326,1818.8,1818.7,5.83006854]
[1680361556295,13.87535499,1818.8,1818.7,5.83006854]
[1680361556599,15.87010326,1818.8,1818.7,5.83006854]
[1680361559006,1.1,1818.6,1817.8,8.65365122]
[1680361559211,0.57581175,1817.9,1817.8,8.65365122]
[1680361559505,0.57577295,1817.9,1817.8,45.66585122]
[1680361559704,0.57577295,1817.9,1817.8,51.9785453]
[1680361560399,0.57577295,1817.9,1817.8,53.64075966]
[1680361560602,3.2078,1818.4,1817.9,1.0]
[1680361560802,0.68201387,1818.3,1818.1,1.1]
[1680361561007,1.0,1818.4,1818.1,1.1]
[1680361561207,0.68198484,1818.3,1818.2,0.56354678]
[1680361564803,3.2078,1818.4,1818.2,0.56354678]
[1680361565303,1.0,1818.3,1818.2,0.56354678]
[1680361565698,3.2078,1818.4,1818.2,0.56354678]
[1680361570800,5.93523525,1818.6,1818.3,1.1]
[1680361571107,0.68194992,1818.5,1818.4,5.48879438]
[1680361575006,1.43734999,1818.6,1818.4,6.58779438]
[1680361575213,1.43734999,1818.7,1818.5,1.1]
[1680361575399,1.43734999,1818.7,1818.6,1.092]
[1680361575601,1.43734999,1818.7,1818.6,7.90323244]
[1680361577103,1.43734999,1818.8,1818.6,13.39623244]
[1680361577307,1.43734999,1818.8,1818.7,1.099]
[1680361577612,2.11915761,1818.8,1818.7,48.19002103]
[1680361577813,1.43734999,1818.8,1818.7,48.19002103]
[1680361579213,2.78180762,1818.9,1818.7,6.29102103]
[1680361579415,0.68180762,1818.8,1818.7,6.29102103]
[1680361579616,0.68180762,1818.8,1818.6,41.42235079]
[1680361579811,1.43711843,1818.7,1818.6,40.8]
[1680361580113,1.43711843,1818.7,1818.6,46.38324357]
[1680361590920,1.14914348,1818.7,1818.6,46.38324357]
[1680361593319,1.14914348,1818.7,1818.6,47.47524357]
[1680361593520,1.14914348,1818.8,1818.6,47.47524357]
[1680361593821,1.14914348,1818.8,1818.7,2.1]
[1680361594425,1.14914348,1818.8,1818.7,8.36755504]
[1680361595114,1.14914348,1818.8,1818.7,49.16755504]
[1680361601027,1.14914348,1818.9,1818.7,49.16755504]
[1680361601325,1.43711843,1819.0,1818.8,2.1]
[1680361601528,1.43711843,1819.0,1818.9,1.0]
[1680361601721,2.11888842,1819.0,1818.9,7.00619179]
[1680361601916,2.11888842,1819.0,1818.9,47.80619179]
[1680361602624,1.43711843,1819.0,1818.9,47.80619179]
[1680361604122,1.9942123,1819.1,1818.9,47.80619179]
[1680361604323,1.14864332,1819.0,1818.9,47.80619179]
[1680361604627,1.43711843,1819.1,1818.9,47.80619179]
[1680361604829,2.11885728,1819.1,1818.9,47.80619179]
[1680361605023,1.14846197,1819.0,1818.9,47.80619179]
[1680361605631,1.43711843,1819.1,1818.9,47.80619179]
[1680361605831,2.11885418,1819.1,1818.9,47.80619179]
[1680361606934,4.64491843,1819.2,1819.0,1.092]
[1680361607129,1.14850798,1819.1,1819.0,1.092]
[1680361607534,1.43711843,1819.1,1819.0,2.12075772]
[1680361608430,1.14858948,1819.1,1819.0,2.12075772]
[1680361608828,4.64491843,1819.2,1819.0,1.02875772]
[1680361609232,1.14843125,1819.1,1819.0,1.02875772]
[1680361610733,4.64491843,1819.2,1819.0,1.02875772]
[1680361611132,5.64491843,1819.2,1819.0,1.02875772]
[1680361611327,4.64491843,1819.2,1819.0,41.82875772]
[1680361611935,1.14856012,1819.1,1819.0,41.82875772]
[1680361613235,1.14856012,1819.1,1819.0,42.92075772]
[1680361615133,1.14856012,1819.3,1819.0,42.92075772]
[1680361615333,1.14856012,1819.3,1819.2,1.1]
[1680361615534,1.14856012,1819.3,1819.2,2.1]
[1680361615741,1.14856012,1819.3,1819.2,8.09481111]
[1680361615941,1.14856012,1819.3,1819.2,8.12738307]
[1680361616138,1.14856012,1819.3,1819.2,8.09481111]
[1680361618439,1.14856012,1819.4,1819.2,8.09481111]
[1680361618640,1.43711843,1819.5,1819.3,1.0]
[1680361618840,1.43711843,1819.4,1819.3,1.0]
[1680361619146,1.43711843,1819.4,1819.3,0.83043488]
[1680361619342,1.14856988,1819.4,1819.3,0.83043488]
[1680361620251,5.32655057,1819.4,1819.3,0.83043488]
[1680361620949,5.32654105,1819.4,1819.3,0.83043488]
[1680361621744,4.64491843,1819.4,1819.3,0.83043488]
[1680361622346,5.32653359,1819.4,1819.3,0.83043488]
[1680361622848,5.32653266,1819.4,1819.3,0.83043488]
[1680361623248,4.64491843,1819.4,1819.3,0.83043488]
[1680361626044,3.2078,1819.4,1819.3,0.83043488]
[1680361626549,1.14857084,1819.4,1819.3,0.83043488]
[1680361626948,1.14857084,1819.4,1819.3,1.93043488]
[1680361639048,1.43711843,1819.5,1819.3,1.93043488]
[1680361639246,1.1496292,1819.4,1819.3,1.93043488]
[1680361641262,1.43711843,1819.5,1819.3,1.93043488]
[1680361641460,5.64491843,1819.4,1819.3,1.93043488]
[1680361641752,4.64491843,1819.4,1819.3,1.93043488]
[1680361642552,2.11872351,1819.5,1819.3,1.93043488]
[1680361642758,1.43711843,1819.4,1819.3,1.93043488]
[1680361643158,2.11872351,1819.5,1819.3,1.93043488]
[1680361644962,1.43711843,1819.4,1819.3,1.93043488]
[1680361646767,6.42652859,1819.4,1819.0,1.099]
[1680361647065,1.095,1819.1,1818.7,0.55620845]
[1680361647268,0.86308325,1818.9,1818.6,41.9]
[1680361647767,0.86308325,1818.8,1818.7,6.9253476]
[1680361648064,1.86308325,1818.9,1818.7,5.9253476]
[1680361648259,0.86308325,1818.8,1818.7,5.9253476]
[1680361654563,0.86308325,1818.8,1818.7,6.9253476]
[1680361654868,0.86308325,1818.8,1818.7,5.9253476]
[1680361655862,0.86308325,1818.8,1818.7,6.9253476]
[1680361656167,0.86308325,1818.8,1818.7,10.1331476]
[1680361656968,0.86308325,1818.8,1818.7,11.2251476]
[1680361657769,0.86308325,1818.9,1818.8,1.0]
[1680361657961,0.86308325,1818.9,1818.8,2.099]
[1680361658163,0.86308325,1818.9,1818.8,2.70088261]
[1680361662869,0.86308325,1818.9,1818.8,43.50088261]
[1680361663068,0.86308325,1819.0,1818.8,48.99388261]
[1680361663265,0.86308325,1819.0,1818.9,4.3078]
[1680361663466,1.15079552,1819.1,1818.9,2.1]
[1680361663767,1.15079552,1819.1,1818.9,11.65391485]
[1680361663968,1.15079552,1819.1,1819.0,1.0]
[1680361664468,1.15079552,1819.1,1819.0,7.27804227]
[1680361666972,1.15079552,1819.1,1819.0,8.37004227]
[1680361667871,1.15079552,1819.1,1819.0,7.37004227]
[1680361673581,0.86191792,1819.1,1819.0,7.37004227]
[1680361673877,0.86191792,1819.1,1819.0,8.37004227]
[1680361674274,0.86191792,1819.1,1819.0,7.37004227]
[1680361674581,1.30227028,1819.2,1819.0,7.37004227]
[1680361674784,1.30227028,1819.2,1819.1,40.8]
[1680361675181,1.30227028,1819.2,1819.1,46.83633362]
[1680361684385,1.30227028,1819.2,1819.1,6.03633362]
[1680361684589,1.30227028,1819.2,1819.1,7.03633362]
[1680361684786,1.30227028,1819.2,1819.1,6.03633362]
[1680361685180,1.30227028,1819.2,1819.1,47.83633362]
[1680361685382,1.30227028,1819.2,1819.1,46.83633362]
[1680361686985,1.30227028,1819.2,1819.1,47.93633362]
[1680361692387,1.30227028,1819.2,1819.1,48.47633362]
[1680361694188,0.15147476,1819.2,1819.1,48.47633362]
[1680361695482,1.30227028,1819.2,1819.1,48.47633362]
[1680361695687,0.15147476,1819.2,1819.1,48.47633362]
[1680361696084,1.30227028,1819.2,1819.1,48.47633362]
[1680361696296,0.14889742,1819.2,1819.1,48.47733362]
[1680361696793,1.29969294,1819.2,1819.1,48.47733362]
[1680361696991,1.29969294,1819.2,1819.1,48.47633362]
[1680361700187,0.14889742,1819.2,1819.1,48.47633362]
[1680361700986,1.29969294,1819.2,1819.1,48.47633362]
[1680361701387,0.14889742,1819.2,1819.1,48.47633362]
[1680361701992,1.29969294,1819.2,1819.1,48.47633362]
[1680361702198,0.14889742,1819.2,1819.1,48.47633362]
[1680361704393,1.01041915,1819.2,1819.1,48.47633362]
[1680361705895,0.14889742,1819.2,1819.1,48.47633362]
[1680361706484,1.01056887,1819.2,1819.1,48.47633362]
[1680361706689,1.0105612,1819.2,1819.1,48.47633362]
[1680361706891,0.14889742,1819.2,1819.1,48.47633362]
[1680361707201,1.0106344,1819.2,1819.1,48.47633362]
[1680361707891,1.0106344,1819.2,1819.1,53.96933362]
[1680361709101,1.58512958,1819.2,1819.1,53.96933362]
[1680361709302,1.0106344,1819.2,1819.1,53.96933362]
[1680361709501,1.58512485,1819.2,1819.1,53.96933362]
[1680361710104,1.0106344,1819.2,1819.1,53.96933362]
[1680361710607,0.72334425,1819.2,1819.1,53.96933362]
[1680361715215,0.72334425,1819.2,1819.1,54.78933362]
[1680361716617,0.14889742,1819.2,1819.1,54.78933362]
[1680361721418,0.57444683,1819.3,1819.1,56.43733362]
[1680361721715,1.43618381,1819.4,1819.2,12.1658]
[1680361721913,1.43618381,1819.4,1819.3,2.472]
[1680361722125,1.43618381,1819.4,1819.3,9.21896804]
[1680361722325,0.57444683,1819.4,1819.3,55.51196804]
[1680361725727,0.57444683,1819.4,1819.3,56.06396551]
[1680361725920,2.11778889,1819.5,1819.3,56.06396551]
[1680361726116,2.11778889,1819.5,1819.4,5.8558]
[1680361726521,1.25605191,1819.5,1819.4,12.13742276]
[1680361726721,1.25605191,1819.5,1819.4,52.97625277]
[1680361729628,1.54334206,1819.5,1819.4,7.14445277]
[1680361729926,1.54334206,1819.5,1819.4,7.13745277]
[1680361732935,6.0402006,1819.5,1819.4,6.32045277]
[1680361733234,6.0402006,1819.5,1819.4,3.69050868]
[1680361734133,3.88940508,1819.5,1819.4,3.69050868]
[1680361734533,6.03782288,1819.5,1819.4,3.69050868]
[1680361734834,4.88940508,1819.5,1819.4,3.69050868]
[1680361735135,3.88940508,1819.5,1819.4,3.69050868]
[1680361735326,5.03782976,1819.5,1819.4,3.69050868]
[1680361736330,3.88940508,1819.5,1819.4,3.69050868]
[1680361736829,5.03795491,1819.5,1819.4,3.69050868]
[1680361737435,1.83016273,1819.5,1819.4,3.69050868]
[1680361740540,1.83040373,1819.5,1819.4,3.69050868]
[1680361743538,1.83040373,1819.5,1819.4,4.51450868]
[1680361743844,1.83040373,1819.5,1819.4,5.51450868]
[1680361744044,1.83040373,1819.5,1819.4,5.55455579]
[1680361744748,0.96950551,1819.5,1819.4,6.37655579]
[1680361744944,0.68226994,1819.5,1819.4,6.37655579]
[1680361745657,0.68226994,1819.5,1819.4,4.55455579]
[1680361746041,1.54410863,1819.5,1819.4,4.55455579]
[1680361746242,0.96950551,1819.5,1819.4,4.55455579]
[1680361749042,1.54414475,1819.5,1819.4,7.76235579]
[1680361750344,1.54414475,1819.5,1819.4,48.56235579]
[1680361751947,0.96950551,1819.5,1819.4,48.56235579]
[1680361754345,0.68268389,1819.5,1819.4,48.56235579]
[1680361755748,0.68268389,1819.5,1819.4,55.69935579]
[1680361755945,8.389e-05,1819.5,1819.4,55.69935579]
[1680361756150,0.86184185,1819.7,1819.4,55.69935579]
[1680361756348,0.86270803,1819.7,1819.6,4.8478]
[1680361756748,0.86270803,1819.7,1819.6,11.64057072]
[1680361757847,0.86270803,1819.7,1819.6,8.43277072]
[1680361758047,0.86270803,1819.7,1819.6,11.64057072]
[1680361758453,0.86270803,1819.8,1819.6,11.64057072]
[1680361758656,0.86270803,1819.8,1819.7,1.824]
[1680361758854,1.14879865,1819.9,1819.8,0.823]
[1680361759049,1.14879865,1819.9,1819.8,42.447]
[1680361759249,1.14879865,1819.9,1819.8,42.56758918]
[1680361762449,1.24879865,1820.0,1819.8,42.56758918]
[1680361762649,1.24879865,1820.0,1819.9,1.824]
[1680361763044,1.24879865,1820.0,1819.9,10.81141821]
[1680361763852,1.24879865,1820.0,1819.9,10.85294677]
[1680361766853,0.1,1820.0,1819.9,10.85294677]
[1680361767054,1.24879865,1820.0,1819.9,7.64514677]
[1680361767356,0.96216455,1820.0,1819.9,10.85294677]
[1680361767561,0.1,1820.0,1819.9,10.85294677]
[1680361768250,1.24879865,1820.0,1819.9,7.64514677]
[1680361768453,0.96200292,1820.0,1819.9,7.64514677]
[1680361768653,0.96200292,1820.0,1819.9,10.85294677]
[1680361769559,0.96200292,1820.0,1819.9,7.64514677]
[1680361769963,0.96200292,1820.0,1819.9,10.85294677]
[1680361770261,0.1,1820.0,1819.9,7.64514677]
[1680361770464,0.96189982,1820.0,1819.9,7.64514677]
[1680361770658,0.96189982,1820.0,1819.9,10.85294677]
[1680361770966,0.96189982,1820.0,1819.9,10.86439866]
[1680361772276,0.1,1820.0,1819.9,10.86439866]
[1680361773178,0.1,1820.0,1819.9,11.68639866]
[1680361773678,0.1,1820.0,1819.9,52.48639866]
[1680361776675,0.1,1820.0,1819.9,58.80339866]
[1680361777077,0.1,1820.0,1819.9,57.98139866]
[1680361777379,0.86189982,1820.2,1820.0,1.824]
[1680361777679,0.86189982,1820.2,1820.1,11.8567216]
[1680361779574,0.86189982,1820.2,1820.1,52.6567216]
[1680361781285,0.00089982,1820.3,1820.1,58.1497216]
[1680361781476,1.14879865,1820.5,1820.2,2.641]
[1680361781678,1.14879865,1820.5,1820.4,0.824]
[1680361782173,1.14879865,1820.5,1820.4,1.53174754]
[1680361782379,1.14879865,1820.6,1820.4,1.53174754]
[1680361782576,1.14879865,1820.6,1820.5,1.824]
[1680361782774,2.4381885,1820.8,1820.5,0.824]
[1680361782775,1.14879865,1820.7,1820.5,0.824]
[1680361782976,1.14879865,1820.7,1820.6,0.824]
[1680361783282,1.14879865,1820.7,1820.6,6.60620568]
[1680361784379,1.14879865,1820.8,1820.6,6.60620568]
[1680361785484,2.14879865,1820.8,1820.6,6.60620568]
[1680361785688,1.14879865,1820.8,1820.6,6.60620568]
[1680361785883,2.14879865,1820.8,1820.6,6.60620568]
[1680361786085,1.14879865,1820.8,1820.7,0.05932592]
[1680361786382,1.14879865,1820.8,1820.7,5.92365157]
[1680361786585,5.35659865,1820.9,1820.7,5.92365157]
[1680361786777,2.14879865,1820.8,1820.7,5.92365157]
[1680361786981,2.14879865,1820.8,1820.7,0.05932592]
[1680361787181,2.14879865,1820.8,1820.7,0.05195223]
[1680361787487,2.14879865,1820.8,1820.5,0.816]
[1680361787682,1.0,1820.8,1820.5,4.0238]
[1680361787877,1.0,1820.8,1820.6,0.05839897]
[1680361787878,2.14879865,1820.8,1820.6,0.05839897]
[1680361788077,2.14879865,1820.8,1820.6,5.85691262]
[1680361788483,6.17459865,1820.9,1820.6,5.85691262]
[1680361788790,1.14879865,1820.8,1820.6,11.34991262]
[1680361788977,1.29879865,1821.0,1820.8,1.648]
[1680361789182,1.29879865,1821.0,1820.9,0.824]
[1680361789383,1.29879865,1821.0,1820.9,7.13982263]
[1680361790286,2.29879865,1821.0,1820.9,7.13982263]
[1680361790585,1.29879865,1821.0,1820.9,7.13982263]
[1680361790787,1.29879865,1821.0,1820.9,6.31582263]
[1680361790989,2.29686779,1821.0,1820.9,6.31582263]
[1680361791290,1.15,1821.0,1820.9,6.31582263]
[1680361791583,2.5881885,1821.0,1820.9,6.31582263]
[1680361791780,1.15,1821.0,1820.9,6.31582263]
[1680361792389,2.29642147,1821.0,1820.9,6.31582263]
[1680361793286,1.15,1821.0,1820.9,6.31582263]
[1680361793486,2.2965335,1821.0,1820.9,6.31582263]
[1680361794080,2.2965335,1821.0,1820.7,1.098]
[1680361794485,1.1465335,1820.9,1820.7,1.098]
[1680361794682,1.1465335,1820.9,1820.8,5.74526374]
[1680361795091,4.04372624,1820.8,1820.1,45.65001408]
[1680361795388,4.04372624,1820.8,1819.9,1.097]
[1680361795389,4.2988,1820.3,1819.9,1.097]
[1680361795784,4.2988,1820.3,1820.1,5.93653581]
[1680361795988,1.1465335,1820.7,1820.2,1.12666994]
[1680361796289,1.1465335,1820.7,1820.3,6.15722735]